Cogmind - Beta 11.1 @@@ ROGUE MODE // 2022.05.18 @ 09:15:35 Player: Flowthing Result: Destroyed self with Rocket Launcher Performance ------------- Evolutions (1) 500 Regions Visited (3) 600 Robots Destroyed (57) 285 Value Destroyed (1585) 1585 Prototype IDs (2) 40 Alien Tech Used (0) 0 Bonus (16) 16 TOTAL SCORE: 3026 Bonus ------- High Alert Combat Kills 68 Friendly Fire -52 Cogmind --------- Core Integrity 0/400 Matter 84/300 Energy 247/265 System Corruption 0% Temperature Hot (203) Movement Walking (130) Location -9/Mines Parts ------- > --- POWER (1) -------- Improved Ion Engine > --- PROPULSION (3) --- Titanium Leg Titanium Leg Titanium Leg > --- UTILITY (3) ------ Large Storage Unit Medium Armor Plating Medium Armor Plating > --- WEAPON (2) ------- Ion Cannon Rocket Launcher > --- INVENTORY (15) --- Light Nuclear Core Aluminum Leg Aluminum Leg Titanium Leg VSS Leg Wheel Medium Storage Unit Medium Armor Plating Hacking Suite Ion Cannon Assault Cannon Assault Cannon Blade Saw Blade Saw Peak State ------------ > --- POWER ------------ Improved Ion Engine > --- PROPULSION ------- Titanium Leg Titanium Leg Titanium Leg > --- UTILITY ---------- Large Storage Unit Medium Armor Plating Medium Armor Plating > --- WEAPON ----------- Ion Cannon Assault Cannon > --- INVENTORY -------- Light Nuclear Core Aluminum Leg Aluminum Leg Titanium Leg VSS Leg Wheel Medium Storage Unit Medium Armor Plating Hacking Suite Ion Cannon Assault Cannon Rocket Launcher Blade Saw Blade Saw [Rating: 25] Favorites ----------- Power Improved Ion Engine Engine Improved Ion Engine Propulsion VSS Leg Treads Improved Treads Leg VSS Leg Wheel Wheel Utility Large Storage Unit Device Heat Sink Storage Large Storage Unit Processor Signal Interpreter Protection Hardened Light Armor Plating Weapon Assault Cannon Energy Gun Small Laser Energy Cannon Ion Cannon Ballistic Gun Assault Rifle Ballistic Cannon Assault Cannon Launcher Rocket Launcher Build | -11 -10 -9 -9 ------- Run | Scr Mat Mat Min Slots Evolved 2 | . . 2 . Power . | . . . . Propulsion 1 | . . 1 . Utility 1 | . . 1 . Weapon . | . . . . Parts Attached 52 | . 11 37 4 Power 8 | . 2 6 . Engine 8 | . 2 6 . Core . | . . . . Reactor . | . . . . Propulsion 16 | . 3 13 . Treads 6 | . 3 3 . Leg 9 | . . 9 . Wheel 1 | . . 1 . Hover . | . . . . Flight . | . . . . Utility 10 | . 3 6 1 Device 1 | . 1 . . Storage 3 | . 1 2 . Processor 1 | . 1 . . Hackware . | . . . . Protection 5 | . . 4 1 Artifact . | . . . . Weapon 18 | . 3 12 3 Energy Gun 7 | . 2 5 . Energy Cannon 1 | . . . 1 Ballistic Gun 3 | . 1 2 . Ballistic Cannon 5 | . . 5 . Launcher 2 | . . . 2 Special Weapon . | . . . . Impact Weapon . | . . . . Slashing Weapon . | . . . . Piercing Weapon . | . . . . Special Melee Weapon . | . . . . Unidentified Prototypes . | . . . . Parts Lost 18 | . 3 14 1 Power 3 | . 1 2 . Propulsion 6 | . 1 5 . Utility 3 | . . 2 1 Weapon 6 | . 1 5 . Highest Loss Streak 5 | . 2 5 1 To Critical Strikes 1 | . . 1 . Average Slot Usage (%) 97 | . 98 96 100 Engine 12 | . 13 10 11 Treads 11 | . 20 6 . Leg 18 | . 7 25 33 Storage 12 | . 14 11 11 Processor 7 | . 11 4 . Protection 9 | . . 14 22 Energy Gun 9 | . 18 3 . Ballistic Gun 5 | . 9 2 . Ballistic Cannon 9 | . . 15 16 Naked Turns . | . . . . Heaviest Build 50 | 11 30 50 47 Greatest Support 69 | 20 46 69 51 Greatest Overweight (x) 3 | . 1 3 . Average Overweight (x) . | . . . . Largest Inventory Capacity 15 | . 15 15 15 Average Capacity 13 | . 10 15 15 Most Carried 15 | . 10 15 15 Average Carried 9 | . 7 9 14 Final Capacity 15 | 8 15 15 15 Final Carried 15 | 6 10 15 14 Class Distribution -------------------- 80% | Mutant 19% | Scavenger-Mutant Dominant Class ---------------- Mutant | -10/Materials Mutant | -9/Materials Mutant | -9/Mines Resources | -11 -10 -9 -9 ----------- Run | Scr Mat Mat Min Matter Collected 1368 | 200 186 966 16 Remotely . | . . . . Salvage Created 1721 | . 551 1029 141 Parts 110 | . 38 66 6 Haulers Intercepted . | . . . . Recyclers Shooed . | . . . . Parts Field Recycled . | . . . . Retrieved Matter . | . . . . Parts Self-Destructed . | . . . . Prevented . | . . . . Kills | -11 -10 -9 -9 ------- Run | Scr Mat Mat Min Combat Hostiles Destroyed 57 | . 16 32 9 Guns 26 | . 16 10 . Cannons 23 | . . 22 1 AOE 8 | . . . 8 Classes Destroyed 10 | . 4 4 2 Worker 1 | . . . 1 Builder 1 | . . 1 . Recycler 2 | . . 1 1 Operator 3 | . 1 2 . Watcher 2 | . 1 1 . Swarmer 13 | . 6 7 . Grunt 26 | . 10 16 . Duelist 1 | . . 1 . Sentry 8 | . . 8 . Assembled 9 | . . . 9 Best Kill Streak 11 | . 5 5 11 Combat Bots Only 9 | . 3 4 9 Max Kills in Single Turn 4 | . 1 2 4 Gunslinging . | . . . . Exploded 4 | . . . 4 Melee . | . . . . Uniques/NPCs Destroyed . | . . . . Combat | -11 -10 -9 -9 -------- Run | Scr Mat Mat Min Damage Taken 3485 | . 703 2528 254 Core 575 | . 139 370 66 Absorbed by Shields . | . . . . Core Remaining (%) 72 | 100 44 . . Volleys Fired 169 | . 45 116 8 Largest 2 | . 2 2 2 Hottest 105 | . 85 105 104 Shots Fired 322 | . 85 222 15 Gun 181 | . 85 96 . Cannon 136 | . . 126 10 Launcher 5 | . . . 5 Special . | . . . . Kinetic 203 | . 30 165 8 Thermal 102 | . 43 57 2 Explosive 5 | . . . 5 Electromagnetic 12 | . 12 . . Robot Hit Streak 16 | . 16 13 2 Robot Miss Streak 5 | . 3 5 2 Penetration Max . | . . . . Secondary Targets 1 | . 1 . . Max Gunslinging Chain 1 | . 1 . . Shots Hit Robots 193 | . 56 131 6 Core Hits 94 | . 25 47 22 Critical Kills . | . . . . Critical Parts Destroyed . | . . . . Critical Strikes 4 | . . 4 . Burn 3 | . . 3 . Blast 1 | . . 1 . Melee Attacks . | . . . . Impact . | . . . . Slashing . | . . . . Piercing . | . . . . Sneak Attacks . | . . . . Combat Hostiles . | . . . . Follow-up Attacks . | . . . . Damage Inflicted 4197 | . 726 2650 821 Guns 1572 | . 722 850 . Cannons 1945 | . . 1800 145 Explosions 676 | . . . 676 Melee . | . . . . Ramming 4 | . 4 . . Kinetic 2523 | . 221 2157 145 Thermal 883 | . 390 493 . Explosive 676 | . . . 676 Electromagnetic 111 | . 111 . . Impact . | . . . . Slashing . | . . . . Piercing . | . . . . Highest Corruption 2 | . 2 . . Average Corruption 2 | . 2 . . Corruption Purged . | . . . . Corruption Blocked . | . . . . Overload Shots . | . . . . Overflow Damage 88 | . . 85 3 Projectiles 85 | . . 85 . Explosions 3 | . . . 3 Melee . | . . . . Knockbacks 26 | . . 23 3 Impact . | . . . . Kinetic 22 | . . 19 3 Secondary 4 | . . 4 . Self-Inflicted Damage 57 | . . . 57 Shots 2 | . . . 2 Rammed . | . . . . Targets Rammed 1 | . 1 . . Kicked 1 | . 1 . . Crushed . | . . . . Highest Temperature 555 | . 156 555 219 Average Temperature 158 | . 44 183 93 Received Heat Transfer 1431 | . 309 1062 60 Effects 27 | . . 27 . Shutdowns 5 | . . 5 . Energy Bleed 3 | . . 3 . Interference 9 | . . 9 . Matter Decay 1 | . . 1 . Short Circuit 3 | . . 3 . Damage (minor) 3 | . . 3 . Damage (major) 2 | . . 2 . Damage (core) 1 | . . 1 . Siege Activations . | . . . . Robots Corrupted . | . . . . Combat Hostiles . | . . . . Parts Fried . | . . . . Impact Corruptions . | . . . . Robots Melted . | . . . . Combat Hostiles . | . . . . Parts Melted 1 | . 1 . . Heat Transferred 2330 | . 919 1411 . Parts Sabotaged . | . . . . Parts Stolen . | . . . . Parts Stripped . | . . . . Power Chain Reactions . | . . . . Missiles Intercepted . | . . . . Alert | -11 -10 -9 -9 ------- Run | Scr Mat Mat Min Peak Influence 551 | . 251 551 213 Initial 144 | . . 105 144 Average 206 | . 102 272 175 Maximum Alert Level 2 | . 1 2 1 Low Security (%) 61 | . 89 43 68 Level 1 23 | . 10 31 31 Level 2 15 | . . 25 . Level 3 . | . . . . Level 4 . | . . . . Level 5 . | . . . . High Security . | . . . . Max Security . | . . . . Squads Dispatched 8 | . 3 5 . Investigation 4 | . 2 2 . Extermination . | . . . . Reinforcement 4 | . 1 3 . Assault . | . . . . Garrison . | . . . . Intercept . | . . . . Searches Triggered . | . . . . Construction Impeded . | . . . . Haulers Reinforced . | . . . . Active Scanning Responses . | . . . . Cargo Convoy Interrupts . | . . . . Stealth | -11 -10 -9 -9 --------- Run | Scr Mat Mat Min Distress Signals 6 | . 1 5 . Communications Jammed . | . . . . Distress Signals . | . . . . Times Spotted 92 | . 27 48 17 Peak Tracking Total 12 | . 4 10 12 Tactical Retreats 8 | . 4 3 1 Traps | -11 -10 -9 -9 ------- Run | Scr Mat Mat Min Traps Triggered 2 | . 2 . . Indirectly . | . . . . Trap Hack Attempts . | . . . . Triggered . | . . . . Disarmed . | . . . . Reprogrammed . | . . . . Reused . | . . . . Traps Extracted . | . . . . Installed . | . . . . Triggered . | . . . . Machines | -11 -10 -9 -9 ---------- Run | Scr Mat Mat Min Machines Disabled 4 | . 1 3 . Max in Single Turn 1 | . 1 1 . Machines Sabotaged . | . . . . Garrisons Compromised . | . . . . Overloaded Fab Kills . | . . . . Hacking | -11 -10 -9 -9 --------- Run | Scr Mat Mat Min Machines Accessed 14 | . 7 7 . Terminals 13 | . 7 6 . Fabricators . | . . . . Repair Stations . | . . . . Recycling Units . | . . . . Scanalyzers 1 | . . 1 . Garrison Access . | . . . . Total Hacks 43 | . 19 24 . Successful 24 | . 11 13 . Failed 19 | . 8 11 . Catastrophic 2 | . 1 1 . Database Lockouts . | . . . . Manual 37 | . 17 20 . Terminals 40 | . 19 21 . Fabricators . | . . . . Repair Stations . | . . . . Recycling Units . | . . . . Scanalyzers 3 | . . 3 . Garrison Access . | . . . . Terminal Hacks 6 | . 4 2 . Prototype ID Bank 1 | . 1 . . Level Access Points 1 | . 1 . . Unreport Threat 2 | . . 2 . Recall Investigation 1 | . 1 . . Zone Layout 1 | . 1 . . Fabricator Hacks . | . . . . Repair Station Hacks . | . . . . Recycling Unit Hacks . | . . . . Scanalyzer 3 | . . 3 . Insert Component 1 | . . 1 . Analyze 2 | . . 2 . Garrison Access Hacks . | . . . . Unauthorized Hacks 15 | . 7 8 . Terminals 15 | . 7 8 . Track 1 | . . 1 . Assimilate 1 | . . 1 . Botnet 11 | . 6 5 . Operators 2 | . 1 1 . Fabricators . | . . . . Repair Stations . | . . . . Recycling Units . | . . . . Scanalyzers . | . . . . Garrison Access . | . . . . Data Cores Recovered . | . . . . Used . | . . . . Hacking Detections 11 | . 5 6 . Full Trace Events 4 | . 1 3 . Feedback Events . | . . . . Feedback Blocked . | . . . . Robot Schematics Acquired . | . . . . Robots Built . | . . . . Authchips . | . . . . Time . | . . . . Total Robot Build Rating . | . . . . Part Schematics Acquired 1 | . . 1 . Parts Built . | . . . . Authchips . | . . . . Time . | . . . . Total Part Build Rating . | . . . . Parts Repaired . | . . . . Time . | . . . . Parts Recycled . | . . . . Recycled Matter . | . . . . Retrieved Matter . | . . . . Retrieved Components . | . . . . Parts Scanalyzed 1 | . . 1 . Part Schematics Acquired 1 | . . 1 . Parts Damaged . | . . . . Bothacking | -11 -10 -9 -9 ------------ Run | Scr Mat Mat Min Used RIF Installer . | . . . . Robots Hacked . | . . . . Non-combat . | . . . . Combat . | . . . . Robot Hacks Applied . | . . . . Relay Couplers Released . | . . . . Fabnet Peak Effective % . | . . . . Robots Rewired . | . . . . Allies Hacked . | . . . . Hacks Repelled . | . . . . Allies | -11 -10 -9 -9 -------- Run | Scr Mat Mat Min Total Allies . | . . . . Largest Group . | . . . . Highest-Rated Group . | . . . . Highest-Rated Ally . | . . . . Total Orders . | . . . . Ally Attacks . | . . . . Total Damage . | . . . . Kills . | . . . . Allies Corrupted . | . . . . Allies Melted . | . . . . Intel | -11 -10 -9 -9 ------- Run | Scr Mat Mat Min Robot Analysis Total . | . . . . Derelict Logs Recovered . | . . . . Drone Launches . | . . . . Drone Recoveries . | . . . . Exploration | -11 -10 -9 -9 ------------- Run | Scr Mat Mat Min Turns Passed 3005 | . 1145 1822 38 Spaces Moved 1452 | 1 643 801 7 Core . | . . . . Treads 585 | . 439 146 . Legs 867 | 1 204 655 7 Wheels . | . . . . Hover . | . . . . Flight . | . . . . Fastest Speed 90 | 120 120 90 130 Average Speed 161 | 120 147 172 130 Slowest Speed 360 | 120 190 360 130 Overloaded Moves . | . . . . Propulsion Burnouts . | . . . . Robots Hopped . | . . . . Cave-ins Triggered . | . . . . Exploration Rate (%) 39 | 2 85 64 7 Regions Visited 3 Branch Regions 1 Pre-discovered Areas . | . . . . Known Exits Taken 1 | . 1 . . Unknown Exits Taken 2 | 1 . 1 . Scrap Searched . | . . . . Spaces Dug . | . . . . Terrain Destroyed 55 | . . 22 33 Melee . | . . . . Projectile 26 | . . 22 4 AOE 29 | . . . 29 Terrain Rammed . | . . . . Walls Destroyed . | . . . . Machines Disabled . | . . . . Actions | -11 -10 -9 -9 --------- Run | Scr Mat Mat Min Total 1796 | . 756 1019 21 Wait 68 | . 37 29 2 Move 1449 | . 642 800 7 Hop . | . . . . Pick Up 25 | . 8 17 . Fast Attach 15 | . 5 10 . Attach 19 | . 3 15 1 Detach 13 | . 4 9 . Swap 18 | . 3 12 3 Drop 19 | . 8 11 . Fire 169 | . 45 116 8 Melee . | . . . . Ram . | . . . . Kick 1 | . 1 . . Crush . | . . . . Escape Stasis . | . . . . Rewire . | . . . . Trap . | . . . . Miscellaneous . | . . . . Route ------- -11/Scrapyard -10/Materials (discovered 5 exits: *Mat x3 / *Min x2) -9/Materials (discovered 4 exits: [*Mat x2] / [*Min] / *Sto) -9/Mines (discovered 1 exit: [*Mat]) History --------- Turn | Location | Event 1 | -11/Scrapyard | Discovered new exit (range 0) 1 | -11/Scrapyard | Entered Materials 211 | -10/Materials | Discovered new exit (range 12) 228 | -10/Materials | Identified exit to Materials 348 | -10/Materials | Build established: Mutant 546 | -10/Materials | Discovered exit to Materials (range 5) 695 | -10/Materials | Discovered new exit (range 13) 785 | -10/Materials | Identified exit to Mines 852 | -10/Materials | Discovered exit to Mines (range 8) 880 | -10/Materials | Core integrity fell below 50% 1146 | -10/Materials | Entered another Materials area 1146 | -9/Materials | Evolved 2 slots: Propulsion x1, Utility x1 1148 | -9/Materials | Discovered new exit (range 7) 1158 | -9/Materials | Identified exit to Storage 1474 | -9/Materials | Lost 5 parts (1p2n2w) 1497 | -9/Materials | Discovered new exit (range 11) 2008 | -9/Materials | Core integrity fell below 50% 2323 | -9/Materials | Discovered new exit (range 9) 2361 | -9/Materials | Core integrity fell below 20% 2363 | -9/Materials | Lost 5 parts (2n1u2w) 2544 | -9/Materials | Discovered new exit (range 16) 2688 | -9/Materials | Build established: Scavenger-Mutant 2968 | -9/Materials | Entered Mines 2968 | -9/Mines | Discovered new exit (range 8) 2972 | -9/Mines | Assembled infested the area 2977 | -9/Mines | Assisted by a Guerilla fighting off Assembled 3006 | -9/Mines | Destroyed self with Rocket Launcher Last Messages --------------- 02991_ as-20304 destroyed. 02991_ Destroyed Asb. F-torch. 02993_ The unstable cave ceiling collapses. 02994_ HV Slug penetrates as-55276. 02994_ as-55276 suffers critical hit (Destroy). 02994_ as-55276 destroyed. 02994_ as-65129 suffers critical hit (Destroy). 02994_ as-65129 destroyed. 02999_ as-75982 knocked back. 03000_ U-05 Engineer lays Concrete. 03000_ as-75982 sneak attacks. 03000_ U-05 Engineer destroyed. 03000_ HV Slug penetrates Wall. 03002_ as-75982 destroyed. 03002_ HV Slug penetrates Wall. 03003_ The unstable cave ceiling collapses. 03004_ Structural Scanner crushed. 03006_ HV Slug penetrates Earth. 03006_ HV Slug penetrates Wall. [Achievement: Back For More] Map ----- +----------------------------------------------------+ | | | | | | | | | | | | | | | | | | | | | | | | | | | ?????????????????????????????????????????????????? | | ?????????????????????????????????????????????????? | | ?????????????????????????????????????????????????? | | ????????????? ????????###????????????????????????? | | ????????????? ?????## #???????????????????????? | | ????????????aa ??### ##?????????????????????? | | ????????????#; ## # ##????????????????????? | | ????????????## % ; #????????????????????? | | ???????????; #????????????????????? | | ???????????## %########?????????????? | | ???????????# %ah* ## #?????????????? | | ???????????# % ! <=! * #?????????????? | | ?????????? !# %|%@ ### #?????????????? | | ?????????????????## #%# ##?# #?????????????? | | ?????????????? ## ##??# #?????????????? | | ???????????# #????####????# #?????????????? | | ???????????#?????????????????#######?????????????? | | ?????????????????????????????????????????????????? | | ?????????????????????????????????????????????????? | | ?????????????????????????????????????????????????? | | ?????????????????????????????????????????????????? | | ?????????????????????????????????????????????????? | | ?????????????????????????????????????????????????? | | ?????????????????????????????????????????????????? | | ?????????????????????????????????????????????????? | | ?????????????????????????????????????????????????? | | ?????????????????????????????????????????????????? | | ?????????????????????????????????????????????????? | | ?????????????????????????????????????????????????? | | ?????????????????????????????????????????????????? | | ?????????????????????????????????????????????????? | | ?????????????????????????????????????????????????? | | ?????????????????????????????????????????????????? | | ?????????????????????????????????????????????????? | | ?????????????????????????????????????????????????? | | ?????????????????????????????????????????????????? | | ?????????????????????????????????????????????????? | +----------------------------------------------------+ Best States ------------- Heat Dissipation 35 Energy Generation 12 Energy Capacity 265 Matter Stores 300 Matter Capacity 300 Sight Range 16 Terrain Scan Density 10 Armor Coverage 450 Evasion (%) 55 Recoil Reduction 3 Item Schematics ----------------- Hacking Suite | -9/Materials | Scanalyzed Robot Schematics ------------------ None Fabricated ------------ Nothing Alien Tech Used ----------------- None Achievements -------------- Back For More Challenges ------------ None Game ------ Seed AnalysisGhostRifle Manual? 0 Play Time 00:23:59 Cumulative 51.7 hours Start 2022.05.18 @ 08:52:41 End 2022.05.18 @ 09:15:35 Sessions 1 Manual Loads 0 Difficulty Rogue Special Mode None Game No. 50 Rogue 50 Adventurer 0 Explorer 0 Win Type - Total 0 Types 0/0/0/0/0/0/0/0/0 Lore% 31 Gallery% 47 Achievement% 30 Wizard Run 0 Options --------- ASCII 0 Keyboard 1 Movement Numpad Keybinds 0 Fullscreen 1 Font 36/Smallcaps Map View 76x50 Tactical HUD 1 Map Filters NONE Filters NONE Steam 1 RUN: a999e49e-e5e0-4020-839e-ebef0d22fbd6